[Event "January 9 Late 2024"]
[Site "https://www.chess.com"]
[Date "2024.01.09"]
[Round "3"]
[White "Liu, Kelsey"]
[Black "Hollan, Petr"]
[Result "1-0"]
[Board "206"]
[TimeControl "180+1"]
[WhiteFideId "30944481"]
[BlackFideId "360945"]
[WhiteElo "2234"]
[BlackElo "2477"]
[WhiteTeam "USA"]
[BlackTeam "CZE"]
[WhiteClock "0:02:40"]
[BlackClock "0:02:35"]

1. Nf3 {[%clk 0:03:00]}  d5 {[%clk 0:02:59]} 2. g3 {[%clk 0:03:01]}  e6 {[%clk 0:02:55]} 3. Bg2 {[%clk 0:03:02]}  Nf6 {[%clk 0:02:55]} 4. O-O {[%clk 0:03:03]}  c5 {[%clk 0:02:55]} 5. c4 {[%clk 0:02:57]}  Nc6 {[%clk 0:02:51]} 6. cxd5 {[%clk 0:02:56]}  exd5 {[%clk 0:02:51]} 7. d4 {[%clk 0:02:56]}  Be7 {[%clk 0:02:50]} 8. dxc5 {[%clk 0:02:55]}  Bxc5 {[%clk 0:02:49]} 9. Nc3 {[%clk 0:02:56]}  O-O {[%clk 0:02:42]} 10. Bg5 {[%clk 0:02:57]}  d4 {[%clk 0:02:42]} 11. Bxf6 {[%clk 0:02:50]}  Bd6 {[%clk 0:02:43]} 12. Bxd8 {[%clk 0:02:49]}  Bc5 {[%clk 0:02:35]} 13. Ne4 {[%clk 0:02:40]} 1-0

[Event "January 9 Late 2024"]
[Site "https://www.chess.com"]
[Date "2024.01.09"]
[Round "3"]
[White "Gonzalez Vega, Alejandro"]
[Black "Balla, Tamas-Kristof"]
[Result "1-0"]
[Board "209"]
[TimeControl "180+1"]
[WhiteFideId "3510042"]
[BlackFideId "1208497"]
[WhiteElo "2221"]
[BlackElo "2449"]
[WhiteTeam "CUB"]
[BlackTeam "ROU"]
[WhiteClock "0:00:10"]
[BlackClock "0:00:10"]

1. e4 {[%clk 0:03:00]}  c5 {[%clk 0:02:58]} 2. Nf3 {[%clk 0:02:59]}  Nc6 {[%clk 0:02:58]} 3. d4 {[%clk 0:02:59]}  cxd4 {[%clk 0:02:59]} 4. c3 {[%clk 0:02:59]}  Nf6 {[%clk 0:02:59]} 5. e5 {[%clk 0:02:59]}  Nd5 {[%clk 0:02:59]} 6. cxd4 {[%clk 0:02:59]}  d6 {[%clk 0:02:59]} 7. exd6 {[%clk 0:02:47]}  e6 {[%clk 0:02:56]} 8. Nc3 {[%clk 0:02:47]}  Bxd6 {[%clk 0:02:56]} 9. Bd3 {[%clk 0:02:46]}  h6 {[%clk 0:02:55]} 10. a3 {[%clk 0:02:46]}  O-O {[%clk 0:02:44]} 11. O-O {[%clk 0:02:45]}  b6 {[%clk 0:02:45]} 12. Re1 {[%clk 0:02:43]}  Bb7 {[%clk 0:02:43]} 13. Bc2 {[%clk 0:02:41]}  Nf6 {[%clk 0:02:37]} 14. Qd3 {[%clk 0:02:39]}  Ne7 {[%clk 0:02:34]} 15. Bd2 {[%clk 0:02:27]}  Nf5 {[%clk 0:02:33]} 16. Be3 {[%clk 0:02:09]}  Bxf3 {[%clk 0:02:28]} 17. gxf3 {[%clk 0:02:08]}  Nh4 {[%clk 0:02:25]} 18. Bd2 {[%clk 0:01:57]}  Qc7 {[%clk 0:02:19]} 19. h3 {[%clk 0:01:53]}  Bh2+ {[%clk 0:02:12]} 20. Kh1 {[%clk 0:01:52]}  Bf4 {[%clk 0:02:13]} 21. Rad1 {[%clk 0:01:51]}  Bxd2 {[%clk 0:02:10]} 22. Rxd2 {[%clk 0:01:50]}  Rad8 {[%clk 0:02:08]} 23. Ne4 {[%clk 0:01:39]}  Nd5 {[%clk 0:01:32]} 24. Rg1 {[%clk 0:01:24]}  Nf5 {[%clk 0:01:19]} 25. Ng3 {[%clk 0:00:40]}  Nf4 {[%clk 0:00:55]} 26. Qe4 {[%clk 0:00:39]}  Nxg3+ {[%clk 0:00:41]} 27. Rxg3 {[%clk 0:00:38]}  f5 {[%clk 0:00:39]} 28. Qe3 {[%clk 0:00:31]}  Kh8 {[%clk 0:00:35]} 29. Bb3 {[%clk 0:00:27]}  e5 {[%clk 0:00:31]} 30. d5 {[%clk 0:00:22]}  Qc1+ {[%clk 0:00:22]} 31. Rg1 {[%clk 0:00:20]}  Qc7 {[%clk 0:00:19]} 32. Rg3 {[%clk 0:00:19]}  Qd6 {[%clk 0:00:19]} 33. h4 {[%clk 0:00:14]}  Qf6 {[%clk 0:00:19]} 34. Kg1 {[%clk 0:00:11]}  Qxh4 {[%clk 0:00:18]} 35. Qxe5 {[%clk 0:00:11]}  Nh3+ {[%clk 0:00:16]} 36. Kg2 {[%clk 0:00:11]}  Ng5 {[%clk 0:00:16]} 37. f4 {[%clk 0:00:11]}  Rde8 {[%clk 0:00:15]} 38. Qd4 {[%clk 0:00:10]}  Re4 {[%clk 0:00:15]} 39. Qc3 {[%clk 0:00:10]}  Rxf4 {[%clk 0:00:15]} 40. d6 {[%clk 0:00:10]}  Rxf2+ {[%clk 0:00:09]} 41. Rxf2 {[%clk 0:00:10]}  Ne4 {[%clk 0:00:10]} 42. Qxg7# {[%clk 0:00:10]} 1-0

[Event "January 9 Late 2024"]
[Site "https://www.chess.com"]
[Date "2024.01.09"]
[Round "3"]
[White "Svicevic, Rastko"]
[Black "Toktomushev, Teimur"]
[Result "0-1"]
[Board "211"]
[TimeControl "180+1"]
[WhiteFideId "916315"]
[BlackFideId "14176726"]
[WhiteElo "2216"]
[BlackElo "2443"]
[WhiteTeam "SRB"]
[BlackTeam "UKR"]
[WhiteClock "0:00:00"]
[BlackClock "0:00:04"]

1. d4 {[%clk 0:02:57]}  d5 {[%clk 0:02:36]} 2. Bg5 {[%clk 0:02:58]}  c5 {[%clk 0:02:27]} 3. e3 {[%clk 0:02:57]}  Nc6 {[%clk 0:02:26]} 4. c3 {[%clk 0:02:56]}  h6 {[%clk 0:02:22]} 5. Bh4 {[%clk 0:02:55]}  Qb6 {[%clk 0:02:22]} 6. b3 {[%clk 0:02:53]}  e5 {[%clk 0:01:56]} 7. dxe5 {[%clk 0:02:51]}  Be6 {[%clk 0:01:55]} 8. Nf3 {[%clk 0:02:44]}  g5 {[%clk 0:01:54]} 9. Bg3 {[%clk 0:02:43]}  O-O-O {[%clk 0:01:55]} 10. Nbd2 {[%clk 0:02:38]}  Nge7 {[%clk 0:01:45]} 11. Bd3 {[%clk 0:02:35]}  Nf5 {[%clk 0:01:32]} 12. Bxf5 {[%clk 0:02:23]}  Bxf5 {[%clk 0:01:32]} 13. O-O {[%clk 0:02:23]}  Be7 {[%clk 0:01:29]} 14. Qe2 {[%clk 0:02:17]}  h5 {[%clk 0:01:26]} 15. h4 {[%clk 0:02:13]}  Bg4 {[%clk 0:00:59]} 16. Qd3 {[%clk 0:02:06]}  gxh4 {[%clk 0:00:59]} 17. Bxh4 {[%clk 0:02:02]}  Bxh4 {[%clk 0:00:57]} 18. Nxh4 {[%clk 0:02:01]}  Nxe5 {[%clk 0:00:57]} 19. Qc2 {[%clk 0:01:50]}  Qf6 {[%clk 0:00:56]} 20. g3 {[%clk 0:01:45]}  Rdg8 {[%clk 0:00:44]} 21. Kh2 {[%clk 0:01:38]}  Ng6 {[%clk 0:00:31]} 22. f3 {[%clk 0:01:03]}  Be6 {[%clk 0:00:27]} 23. Ng2 {[%clk 0:01:04]}  h4 {[%clk 0:00:22]} 24. g4 {[%clk 0:01:04]}  h3 {[%clk 0:00:23]} 25. Ne1 {[%clk 0:00:59]}  Qe5+ {[%clk 0:00:21]} 26. f4 {[%clk 0:00:54]}  Qxe3 {[%clk 0:00:21]} 27. Qd3 {[%clk 0:00:55]}  Qxd3 {[%clk 0:00:13]} 28. Nxd3 {[%clk 0:00:56]}  Bxg4 {[%clk 0:00:12]} 29. Nxc5 {[%clk 0:00:55]}  Re8 {[%clk 0:00:13]} 30. Rf2 {[%clk 0:00:48]}  Nh4 {[%clk 0:00:11]} 31. Nd3 {[%clk 0:00:42]}  Ng2 {[%clk 0:00:08]} 32. Ne5 {[%clk 0:00:42]}  Bf5 {[%clk 0:00:07]} 33. Nxf7 {[%clk 0:00:37]}  Rhf8 {[%clk 0:00:02]} 34. Nd6+ {[%clk 0:00:36]}  Kd7 {[%clk 0:00:03]} 35. Nxe8 {[%clk 0:00:34]}  Rxe8 {[%clk 0:00:04]} 36. Nf3 {[%clk 0:00:31]}  Ne3 {[%clk 0:00:03]} 37. Nd4 {[%clk 0:00:23]}  Ng4+ {[%clk 0:00:02]} 38. Kg3 {[%clk 0:00:21]}  Nxf2 {[%clk 0:00:02]} 39. Kxf2 {[%clk 0:00:21]}  Be4 {[%clk 0:00:03]} 40. Kg3 {[%clk 0:00:20]}  Rh8 {[%clk 0:00:04]} 41. Kh2 {[%clk 0:00:19]}  Rh4 {[%clk 0:00:04]} 42. Rf1 {[%clk 0:00:15]}  Ke7 {[%clk 0:00:03]} 43. Rf2 {[%clk 0:00:11]}  Kf6 {[%clk 0:00:03]} 44. Kg3 {[%clk 0:00:11]}  Rh8 {[%clk 0:00:02]} 45. Rh2 {[%clk 0:00:12]}  Bg2 {[%clk 0:00:02]} 46. Nf3 {[%clk 0:00:12]}  Re8 {[%clk 0:00:02]} 47. Ne5 {[%clk 0:00:09]}  Rxe5 {[%clk 0:00:02]} 48. fxe5+ {[%clk 0:00:09]}  Kxe5 {[%clk 0:00:03]} 49. Rxg2 {[%clk 0:00:04]}  hxg2 {[%clk 0:00:03]} 50. Kxg2 {[%clk 0:00:05]}  Ke4 {[%clk 0:00:04]} 51. Kf2 {[%clk 0:00:04]}  Kd3 {[%clk 0:00:04]} 52. c4 {[%clk 0:00:00]}  d4 {[%clk 0:00:04]} 0-1

[Event "January 9 Late 2024"]
[Site "https://www.chess.com"]
[Date "2024.01.09"]
[Round "3"]
[White "Poddubnyi, Viktor"]
[Black "Abdi, Farzad"]
[Result "0-1"]
[Board "215"]
[TimeControl "180+1"]
[WhiteFideId "4141989"]
[BlackFideId "2076829"]
[WhiteElo "2420"]
[BlackElo "2199"]
[WhiteTeam "RUS"]
[BlackTeam "USA"]
[WhiteClock "0:00:02"]
[BlackClock "0:00:22"]

1. e4 {[%clk 0:02:58]}  e5 {[%clk 0:03:00]} 2. f4 {[%clk 0:02:58]}  Bc5 {[%clk 0:02:58]} 3. Nf3 {[%clk 0:02:58]}  d6 {[%clk 0:02:51]} 4. c3 {[%clk 0:02:57]}  Bg4 {[%clk 0:02:50]} 5. h3 {[%clk 0:02:42]}  Bxf3 {[%clk 0:02:44]} 6. Qxf3 {[%clk 0:02:43]}  Nc6 {[%clk 0:02:39]} 7. Bc4 {[%clk 0:02:38]}  Nf6 {[%clk 0:02:36]} 8. d3 {[%clk 0:02:06]}  a6 {[%clk 0:02:28]} 9. f5 {[%clk 0:02:03]}  Qe7 {[%clk 0:02:19]} 10. Bg5 {[%clk 0:02:00]}  O-O-O {[%clk 0:02:17]} 11. Nd2 {[%clk 0:01:57]}  h6 {[%clk 0:02:09]} 12. Bh4 {[%clk 0:01:56]}  Rhf8 {[%clk 0:02:00]} 13. Rf1 {[%clk 0:01:46]}  Kb8 {[%clk 0:01:43]} 14. b4 {[%clk 0:01:42]}  Bb6 {[%clk 0:01:40]} 15. O-O-O {[%clk 0:01:41]}  a5 {[%clk 0:01:22]} 16. b5 {[%clk 0:01:21]}  d5 {[%clk 0:01:15]} 17. exd5 {[%clk 0:00:52]}  Qa3+ {[%clk 0:01:10]} 18. Kc2 {[%clk 0:00:48]}  Bd4 {[%clk 0:00:53]} 19. Nb1 {[%clk 0:00:39]}  Nb4+ {[%clk 0:00:47]} 20. Kd2 {[%clk 0:00:16]}  Qb2+ {[%clk 0:00:46]} 21. Ke1 {[%clk 0:00:16]}  Bxc3+ {[%clk 0:00:30]} 22. Nxc3 {[%clk 0:00:16]}  Qxc3+ {[%clk 0:00:30]} 23. Kf2 {[%clk 0:00:16]}  Qd4+ {[%clk 0:00:29]} 24. Kg3 {[%clk 0:00:15]}  Nbxd5 {[%clk 0:00:23]} 25. Kh2 {[%clk 0:00:02]}  Qxh4 {[%clk 0:00:22]} 0-1

[Event "January 9 Late 2024"]
[Site "https://www.chess.com"]
[Date "2024.01.09"]
[Round "3"]
[White "Ferrufino, Boris"]
[Black "Bueno, Alfeu Junior Varela"]
[Result "1-0"]
[Board "217"]
[TimeControl "180+1"]
[WhiteFideId "3300170"]
[BlackFideId "2108879"]
[WhiteElo "2168"]
[BlackElo "2411"]
[WhiteTeam "BOL"]
[BlackTeam "BRA"]
[WhiteClock "0:01:21"]
[BlackClock "0:00:08"]

1. e4 {[%clk 0:02:57]}  e6 {[%clk 0:02:57]} 2. d4 {[%clk 0:02:56]}  d5 {[%clk 0:02:57]} 3. Nd2 {[%clk 0:02:57]}  Nf6 {[%clk 0:02:57]} 4. e5 {[%clk 0:02:57]}  Nfd7 {[%clk 0:02:58]} 5. Bd3 {[%clk 0:02:58]}  c5 {[%clk 0:02:58]} 6. c3 {[%clk 0:02:59]}  Nc6 {[%clk 0:02:59]} 7. Ne2 {[%clk 0:02:59]}  cxd4 {[%clk 0:02:58]} 8. cxd4 {[%clk 0:03:00]}  f6 {[%clk 0:02:59]} 9. exf6 {[%clk 0:03:01]}  Nxf6 {[%clk 0:03:00]} 10. Nf3 {[%clk 0:03:02]}  Bd6 {[%clk 0:03:00]} 11. O-O {[%clk 0:03:02]}  Qc7 {[%clk 0:03:01]} 12. b3 {[%clk 0:03:02]}  e5 {[%clk 0:02:57]} 13. dxe5 {[%clk 0:03:02]}  Nxe5 {[%clk 0:02:58]} 14. Bb5+ {[%clk 0:03:02]}  Bd7 {[%clk 0:02:46]} 15. Bxd7+ {[%clk 0:03:02]}  Qxd7 {[%clk 0:02:47]} 16. Ned4 {[%clk 0:02:51]}  O-O {[%clk 0:02:45]} 17. Re1 {[%clk 0:02:51]}  Rae8 {[%clk 0:02:26]} 18. Bb2 {[%clk 0:02:45]}  Ne4 {[%clk 0:02:22]} 19. Rc1 {[%clk 0:02:38]}  Qf7 {[%clk 0:01:39]} 20. Rc2 {[%clk 0:02:09]}  Qg6 {[%clk 0:01:24]} 21. Nxe5 {[%clk 0:02:01]}  Bxe5 {[%clk 0:01:25]} 22. Rce2 {[%clk 0:02:01]}  Qh6 {[%clk 0:01:00]} 23. g3 {[%clk 0:01:59]}  Qf6 {[%clk 0:00:41]} 24. f4 {[%clk 0:01:34]}  Bb8 {[%clk 0:00:41]} 25. Nf3 {[%clk 0:01:32]}  Qb6+ {[%clk 0:00:37]} 26. Bd4 {[%clk 0:01:32]}  Qb5 {[%clk 0:00:34]} 27. Ne5 {[%clk 0:01:30]}  Re6 {[%clk 0:00:21]} 28. Kg2 {[%clk 0:01:29]}  Qe8 {[%clk 0:00:19]} 29. Nf3 {[%clk 0:01:28]}  Qh5 {[%clk 0:00:17]} 30. Ne5 {[%clk 0:01:23]}  Rh6 {[%clk 0:00:16]} 31. h4 {[%clk 0:01:21]}  Bxe5 {[%clk 0:00:14]} 32. Bxe5 {[%clk 0:01:20]}  Rd8 {[%clk 0:00:13]} 33. Rxe4 {[%clk 0:01:20]}  Qxd1 {[%clk 0:00:11]} 34. Rxd1 {[%clk 0:01:21]}  dxe4 {[%clk 0:00:09]} 35. Rxd8+ {[%clk 0:01:22]}  Kf7 {[%clk 0:00:08]} 36. Rd7+ {[%clk 0:01:21]} 1-0

[Event "January 9 Late 2024"]
[Site "https://www.chess.com"]
[Date "2024.01.09"]
[Round "3"]
[White "Varela La Madrid, Maria"]
[Black "Meduri, Aakaash"]
[Result "0-1"]
[Board "218"]
[TimeControl "180+1"]
[WhiteFideId "3903346"]
[BlackFideId "2032252"]
[WhiteElo "2165"]
[BlackElo "2408"]
[WhiteTeam "VEN"]
[BlackTeam "USA"]
[WhiteClock "0:00:06"]
[BlackClock "0:00:08"]

1. d4 {[%clk 0:03:00]}  f5 {[%clk 0:02:55]} 2. g3 {[%clk 0:02:54]}  Nf6 {[%clk 0:02:55]} 3. Bg2 {[%clk 0:02:54]}  e6 {[%clk 0:02:53]} 4. Nf3 {[%clk 0:02:50]}  Be7 {[%clk 0:02:53]} 5. O-O {[%clk 0:02:50]}  O-O {[%clk 0:02:54]} 6. c4 {[%clk 0:02:50]}  d6 {[%clk 0:02:53]} 7. Nc3 {[%clk 0:02:49]}  Ne4 {[%clk 0:02:54]} 8. Nxe4 {[%clk 0:02:48]}  fxe4 {[%clk 0:02:54]} 9. Ne1 {[%clk 0:02:45]}  d5 {[%clk 0:02:49]} 10. f3 {[%clk 0:02:43]}  dxc4 {[%clk 0:02:34]} 11. fxe4 {[%clk 0:02:38]}  c5 {[%clk 0:02:33]} 12. Rxf8+ {[%clk 0:02:25]}  Bxf8 {[%clk 0:02:27]} 13. Be3 {[%clk 0:02:15]}  cxd4 {[%clk 0:02:15]} 14. Qxd4 {[%clk 0:02:14]}  Qxd4 {[%clk 0:02:13]} 15. Bxd4 {[%clk 0:02:15]}  Nc6 {[%clk 0:02:13]} 16. Bf2 {[%clk 0:02:11]}  e5 {[%clk 0:02:07]} 17. Nc2 {[%clk 0:02:10]}  b5 {[%clk 0:01:51]} 18. Ne3 {[%clk 0:01:55]}  Nd4 {[%clk 0:01:50]} 19. Kf1 {[%clk 0:01:53]}  Be6 {[%clk 0:01:01]} 20. Nd5 {[%clk 0:01:36]}  Rc8 {[%clk 0:00:59]} 21. e3 {[%clk 0:01:25]}  Nc6 {[%clk 0:00:56]} 22. Rc1 {[%clk 0:01:18]}  Nb4 {[%clk 0:00:49]} 23. Nxb4 {[%clk 0:01:15]}  Bxb4 {[%clk 0:00:49]} 24. Be1 {[%clk 0:01:13]}  Bc5 {[%clk 0:00:47]} 25. Ke2 {[%clk 0:01:10]}  Rd8 {[%clk 0:00:44]} 26. Bf3 {[%clk 0:01:07]}  a6 {[%clk 0:00:37]} 27. Bd2 {[%clk 0:00:54]}  Kf7 {[%clk 0:00:35]} 28. Rf1 {[%clk 0:00:47]}  Ke7 {[%clk 0:00:35]} 29. g4 {[%clk 0:00:42]}  g5 {[%clk 0:00:33]} 30. a3 {[%clk 0:00:40]}  Rd3 {[%clk 0:00:25]} 31. h4 {[%clk 0:00:40]}  h6 {[%clk 0:00:25]} 32. hxg5 {[%clk 0:00:39]}  hxg5 {[%clk 0:00:26]} 33. Rh1 {[%clk 0:00:39]}  Rb3 {[%clk 0:00:25]} 34. Bc3 {[%clk 0:00:37]}  Bxa3 {[%clk 0:00:20]} 35. Bxe5 {[%clk 0:00:35]}  Bxb2 {[%clk 0:00:20]} 36. Rh7+ {[%clk 0:00:35]}  Bf7 {[%clk 0:00:20]} 37. Bc7 {[%clk 0:00:30]}  Ke6 {[%clk 0:00:07]} 38. Rh6+ {[%clk 0:00:27]}  Kd7 {[%clk 0:00:07]} 39. Bb8 {[%clk 0:00:22]}  Bg7 {[%clk 0:00:07]} 40. Rh7 {[%clk 0:00:22]}  Rb2+ {[%clk 0:00:07]} 41. Kf1 {[%clk 0:00:20]}  c3 {[%clk 0:00:07]} 42. Rxg7 {[%clk 0:00:19]}  Ke6 {[%clk 0:00:06]} 43. Bd1 {[%clk 0:00:15]}  c2 {[%clk 0:00:06]} 44. Bxc2 {[%clk 0:00:15]}  Rxc2 {[%clk 0:00:07]} 45. Rxg5 {[%clk 0:00:15]}  b4 {[%clk 0:00:06]} 46. Re5+ {[%clk 0:00:14]}  Kf6 {[%clk 0:00:06]} 47. Rf5+ {[%clk 0:00:13]}  Kg6 {[%clk 0:00:06]} 48. Be5 {[%clk 0:00:11]}  Bc4+ {[%clk 0:00:05]} 49. Kg1 {[%clk 0:00:10]}  b3 {[%clk 0:00:06]} 50. Rf6+ {[%clk 0:00:10]}  Kg5 {[%clk 0:00:06]} 51. Rc6 {[%clk 0:00:09]}  a5 {[%clk 0:00:05]} 52. Bd4 {[%clk 0:00:06]}  Kxg4 {[%clk 0:00:05]} 53. e5 {[%clk 0:00:06]}  Kg3 {[%clk 0:00:04]} 54. Rg6+ {[%clk 0:00:05]}  Kf3 {[%clk 0:00:05]} 55. Rf6+ {[%clk 0:00:05]}  Ke4 {[%clk 0:00:04]} 56. e6 {[%clk 0:00:04]}  Bxe6 {[%clk 0:00:02]} 57. Rxe6+ {[%clk 0:00:04]}  Kd3 {[%clk 0:00:02]} 58. Ra6 {[%clk 0:00:05]}  Ra2 {[%clk 0:00:02]} 59. Kf1 {[%clk 0:00:02]}  a4 {[%clk 0:00:03]} 60. Ke1 {[%clk 0:00:03]}  a3 {[%clk 0:00:02]} 61. Kf1 {[%clk 0:00:01]}  b2 {[%clk 0:00:02]} 62. Bxb2 {[%clk 0:00:01]}  axb2 {[%clk 0:00:03]} 63. Rb6 {[%clk 0:00:02]}  Ra1+ {[%clk 0:00:02]} 64. Kg2 {[%clk 0:00:02]}  b1=Q {[%clk 0:00:03]} 65. Rxb1 {[%clk 0:00:01]}  Rxb1 {[%clk 0:00:04]} 66. Kf3 {[%clk 0:00:01]}  Rb4 {[%clk 0:00:05]} 67. Kf2 {[%clk 0:00:01]}  Re4 {[%clk 0:00:06]} 68. Kg3 {[%clk 0:00:01]}  Rxe3+ {[%clk 0:00:07]} 69. Kf2 {[%clk 0:00:02]}  Ke4 {[%clk 0:00:07]} 70. Kg2 {[%clk 0:00:03]}  Kf4 {[%clk 0:00:07]} 71. Kf2 {[%clk 0:00:03]}  Re4 {[%clk 0:00:08]} 72. Kg2 {[%clk 0:00:04]}  Re2+ {[%clk 0:00:07]} 73. Kf1 {[%clk 0:00:05]}  Ra2 {[%clk 0:00:07]} 74. Kg1 {[%clk 0:00:05]}  Kf3 {[%clk 0:00:08]} 75. Kf1 {[%clk 0:00:06]}  Ra1# {[%clk 0:00:08]} 0-1

[Event "January 9 Late 2024"]
[Site "https://www.chess.com"]
[Date "2024.01.09"]
[Round "3"]
[White "Feliz Dotel, Dewar Bienvenido"]
[Black "Alvarado, Carlos"]
[Result "0-1"]
[Board "220"]
[TimeControl "180+1"]
[WhiteFideId "6402801"]
[BlackFideId "3800555"]
[WhiteElo "2161"]
[BlackElo "2405"]
[WhiteTeam "DOM"]
[BlackTeam "PER"]
[WhiteClock "0:00:00"]
[BlackClock "0:01:10"]

1. Nf3 {[%clk 0:02:35]}  d5 {[%clk 0:02:59]} 2. g3 {[%clk 0:02:23]}  Nf6 {[%clk 0:02:59]} 3. Bg2 {[%clk 0:02:19]}  c6 {[%clk 0:03:00]} 4. O-O {[%clk 0:02:16]}  Bf5 {[%clk 0:03:00]} 5. d4 {[%clk 0:02:15]}  h6 {[%clk 0:03:00]} 6. c4 {[%clk 0:02:15]}  e6 {[%clk 0:03:00]} 7. Nc3 {[%clk 0:02:08]}  Nbd7 {[%clk 0:02:59]} 8. Nd2 {[%clk 0:02:07]}  Bh7 {[%clk 0:02:56]} 9. e4 {[%clk 0:02:05]}  dxe4 {[%clk 0:02:54]} 10. Ndxe4 {[%clk 0:02:06]}  Be7 {[%clk 0:02:54]} 11. Qb3 {[%clk 0:02:06]}  Qb6 {[%clk 0:02:52]} 12. c5 {[%clk 0:01:52]}  Qxb3 {[%clk 0:02:51]} 13. axb3 {[%clk 0:01:53]}  O-O {[%clk 0:02:47]} 14. Bf4 {[%clk 0:01:53]}  Nd5 {[%clk 0:02:35]} 15. Nxd5 {[%clk 0:01:46]}  exd5 {[%clk 0:02:35]} 16. Bd6 {[%clk 0:01:08]}  Rfe8 {[%clk 0:02:30]} 17. Bxe7 {[%clk 0:01:08]}  Bxe4 {[%clk 0:02:26]} 18. Bd6 {[%clk 0:00:56]}  Bxg2 {[%clk 0:02:10]} 19. Kxg2 {[%clk 0:00:57]}  Re2 {[%clk 0:02:08]} 20. Rfe1 {[%clk 0:00:47]}  Rxe1 {[%clk 0:01:44]} 21. Rxe1 {[%clk 0:00:48]}  b6 {[%clk 0:01:44]} 22. Re7 {[%clk 0:00:46]}  Nf6 {[%clk 0:01:44]} 23. Rc7 {[%clk 0:00:40]}  bxc5 {[%clk 0:01:42]} 24. Bxc5 {[%clk 0:00:37]}  Rb8 {[%clk 0:01:40]} 25. b4 {[%clk 0:00:34]}  a5 {[%clk 0:01:40]} 26. bxa5 {[%clk 0:00:33]}  Rxb2 {[%clk 0:01:40]} 27. a6 {[%clk 0:00:33]}  Ra2 {[%clk 0:01:40]} 28. a7 {[%clk 0:00:33]}  Kh7 {[%clk 0:01:39]} 29. Rc8 {[%clk 0:00:27]}  Ne4 {[%clk 0:01:39]} 30. a8=Q {[%clk 0:00:27]}  Rxf2+ {[%clk 0:01:38]} 31. Kg1 {[%clk 0:00:27]}  Rc2 {[%clk 0:01:31]} 32. Rh8+ {[%clk 0:00:27]}  Kg6 {[%clk 0:01:30]} 33. Qxc6+ {[%clk 0:00:28]}  f6 {[%clk 0:01:28]} 34. Qxd5 {[%clk 0:00:14]}  Ng5 {[%clk 0:01:28]} 35. Qb3 {[%clk 0:00:10]}  Nh3+ {[%clk 0:01:24]} 36. Kf1 {[%clk 0:00:09]}  Rf2+ {[%clk 0:01:22]} 37. Ke1 {[%clk 0:00:09]}  Rxh2 {[%clk 0:01:23]} 38. Qb1+ {[%clk 0:00:08]}  f5 {[%clk 0:01:23]} 39. Qb6+ {[%clk 0:00:08]}  Kh5 {[%clk 0:01:22]} 40. Rg8 {[%clk 0:00:05]}  g5 {[%clk 0:01:19]} 41. Qg6+ {[%clk 0:00:04]}  Kg4 {[%clk 0:01:19]} 42. Rf8 {[%clk 0:00:04]}  Rf2 {[%clk 0:01:19]} 43. Re8 {[%clk 0:00:02]}  Rf3 {[%clk 0:01:16]} 44. d5 {[%clk 0:00:02]}  Rxg3 {[%clk 0:01:12]} 45. Qxf5+ {[%clk 0:00:00]}  Kxf5 {[%clk 0:01:10]} 0-1

[Event "January 9 Late 2024"]
[Site "https://www.chess.com"]
[Date "2024.01.09"]
[Round "3"]
[White "Michalski, Olaf"]
[Black "Ozen, Metehan"]
[Result "0-1"]
[Board "221"]
[TimeControl "180+1"]
[WhiteFideId "1106740"]
[BlackFideId "34596054"]
[WhiteElo "2149"]
[BlackElo "2401"]
[WhiteTeam "POL"]
[BlackTeam "TUR"]
[WhiteClock "0:00:15"]
[BlackClock "0:01:39"]

1. d4 {[%clk 0:02:58]}  d5 {[%clk 0:02:58]} 2. c4 {[%clk 0:02:56]}  c6 {[%clk 0:02:58]} 3. cxd5 {[%clk 0:02:56]}  cxd5 {[%clk 0:02:58]} 4. Nc3 {[%clk 0:02:56]}  Nf6 {[%clk 0:02:57]} 5. Nf3 {[%clk 0:02:56]}  Nc6 {[%clk 0:02:57]} 6. Bf4 {[%clk 0:02:56]}  a6 {[%clk 0:02:57]} 7. e3 {[%clk 0:02:50]}  Bg4 {[%clk 0:02:56]} 8. h3 {[%clk 0:02:50]}  Bh5 {[%clk 0:02:55]} 9. Qb3 {[%clk 0:02:50]}  Na5 {[%clk 0:02:52]} 10. Qa4+ {[%clk 0:02:42]}  b5 {[%clk 0:02:52]} 11. Nxb5 {[%clk 0:02:36]}  axb5 {[%clk 0:02:46]} 12. Bxb5+ {[%clk 0:02:35]}  Nd7 {[%clk 0:02:46]} 13. Ne5 {[%clk 0:02:35]}  Nc6 {[%clk 0:02:39]} 14. Nxc6 {[%clk 0:01:34]}  Rxa4 {[%clk 0:02:26]} 15. Nxd8 {[%clk 0:01:34]}  Rb4 {[%clk 0:02:27]} 16. Rc1 {[%clk 0:00:54]}  Rxb5 {[%clk 0:02:05]} 17. Rc8 {[%clk 0:00:54]}  Nb6 {[%clk 0:02:06]} 18. Rb8 {[%clk 0:00:42]}  e5 {[%clk 0:01:50]} 19. Nc6+ {[%clk 0:00:31]}  Kd7 {[%clk 0:01:43]} 20. Nxe5+ {[%clk 0:00:31]}  Ke6 {[%clk 0:01:41]} 21. O-O {[%clk 0:00:20]}  f6 {[%clk 0:01:41]} 22. Re8+ {[%clk 0:00:15]}  Bxe8 {[%clk 0:01:39]} 0-1

[Event "January 9 Late 2024"]
[Site "https://www.chess.com"]
[Date "2024.01.09"]
[Round "3"]
[White "Marchesich, Giovanni"]
[Black "Floresvillar Gonzalez, Luis Migu"]
[Result "1-0"]
[Board "222"]
[TimeControl "180+1"]
[WhiteFideId "2824790"]
[BlackFideId "5100542"]
[WhiteElo "2397"]
[BlackElo "2135"]
[WhiteTeam "ITA"]
[BlackTeam "MEX"]
[WhiteClock "0:02:13"]
[BlackClock "0:00:00"]

1. Nc3 {[%clk 0:03:00]}  e5 {[%clk 0:01:30]} 2. Nf3 {[%clk 0:02:59]}  f6 {[%clk 0:01:30]} 3. e4 {[%clk 0:02:56]}  Bc5 {[%clk 0:01:29]} 4. Bc4 {[%clk 0:02:41]}  Ne7 {[%clk 0:01:22]} 5. O-O {[%clk 0:02:38]}  d6 {[%clk 0:01:19]} 6. d4 {[%clk 0:02:37]}  exd4 {[%clk 0:01:17]} 7. Nxd4 {[%clk 0:02:38]}  Bxd4 {[%clk 0:01:16]} 8. Qxd4 {[%clk 0:02:37]}  Nbc6 {[%clk 0:01:16]} 9. Qd1 {[%clk 0:02:28]}  Ne5 {[%clk 0:00:53]} 10. Bb3 {[%clk 0:02:27]}  Bd7 {[%clk 0:00:52]} 11. f4 {[%clk 0:02:28]}  N5g6 {[%clk 0:00:50]} 12. Qh5 {[%clk 0:02:25]}  f5 {[%clk 0:00:33]} 13. exf5 {[%clk 0:02:20]}  Bxf5 {[%clk 0:00:31]} 14. g4 {[%clk 0:02:16]}  Qd7 {[%clk 0:00:19]} 15. gxf5 {[%clk 0:02:14]}  Qxf5 {[%clk 0:00:18]} 16. Qxf5 {[%clk 0:02:12]}  Nxf5 {[%clk 0:00:18]} 17. Re1+ {[%clk 0:02:13]}  Kf8 {[%clk 0:00:06]} 18. Bd2 {[%clk 0:02:13]}  c6 {[%clk 0:00:05]} 19. Ne4 {[%clk 0:02:12]}  d5 {[%clk 0:00:00]} 20. Nc5 {[%clk 0:02:13]} 1-0